Cogmind - Beta 14 @@@ ROGUE MODE // 2024.10.11 @ 15:36:06 Player: iromakkem Result: Self-destructed Performance ------------- Evolutions (3) 1500 Regions Visited (5) 1000 Robots Destroyed (132) 660 Value Destroyed (4100) 4100 Prototype IDs (2) 40 Alien Tech Used (0) 0 Bonus (649) 649 TOTAL SCORE: 7949 Bonus ------- High Alert Combat Kills 649 Cogmind --------- Core Integrity 223/700 Matter 254/300 Energy 290/290 System Corruption 4% Temperature Cool (9) Movement Flying (197) Ox2 Location -7/Lower Caves Parts ------- > --- POWER (2) -------- Improved Deuterium Engine > --- PROPULSION (3) --- Xenon Bombardment Thruster Xenon Bombardment Thruster > --- UTILITY (5) ------ Advanced Heat Sink Advanced Targeting Computer Core Analyzer ECM Suite > --- WEAPON (3) ------- Plasma Cannon Improved Grenade Launcher > --- INVENTORY (5) ---- Hacking Suite Powered Hammer Peak State ------------ > --- POWER ------------ Improved Deuterium Engine Improved Deuterium Engine > --- PROPULSION ------- Improved Carbon-fiber Leg Improved Carbon-fiber Leg Improved Carbon-fiber Leg > --- UTILITY ---------- Large Storage Unit Advanced Visual Processing Unit Improved Sensor Array Core Analyzer Improved Propulsion Shielding > --- WEAPON ----------- Precision Shock Rifle Particle Gun Powered Hammer > --- INVENTORY -------- Improved Deuterium Engine Xenon Bombardment Thruster Xenon Bombardment Thruster Xenon Bombardment Thruster Advanced Heat Sink Advanced Targeting Computer Energy Filter ECM Suite Hardened Medium Armor Plating Hacking Suite Improved EM Pulse Cannon High-powered Shotgun High-powered Shotgun Assault Cannon Improved Grenade Launcher [Rating: 50] Favorites ----------- Power Improved Deuterium Engine Engine Improved Deuterium Engine Power Core Light Nuclear Core Propulsion Aluminum Leg Treads Light Treads Leg Aluminum Leg Flight Unit Xenon Bombardment Thruster Utility Large Storage Unit Device Improved Heat Sink Storage Large Storage Unit Processor Core Analyzer Protection Hardened Medium Armor Plating Weapon Heavy Particle Cannon Energy Gun Particle Gun Energy Cannon Heavy Particle Cannon Ballistic Gun Heavy Assault Rifle Ballistic Cannon Assault Cannon Launcher Grenade Launcher Special Weapon Remote Datajack Impact Weapon Powered Hammer Slashing Weapon Katana Build | -11 -10 -9 -8 -7 -7 ------- Run | Yrd Mat Mat Mat Fac Low Slots Evolved 6 | . . 2 2 2 . Power 1 | . . . . 1 . Propulsion 1 | . . . 1 . . Utility 3 | . . 1 1 1 . Weapon 1 | . . 1 . . . Parts Attached 158 | 9 8 23 59 55 4 Power 12 | 1 . 2 2 7 . Engine 9 | 1 . 2 . 6 . Core 3 | . . . 2 1 . Reactor . | . . . . . . Propulsion 36 | 2 2 4 17 11 . Treads 4 | . 2 2 . . . Leg 29 | 2 . 2 17 8 . Wheel . | . . . . . . Hover . | . . . . . . Flight 3 | . . . . 3 . Utility 37 | 2 3 7 14 9 2 Device 16 | 1 . 3 6 5 1 Storage 3 | 1 2 . . . . Processor 5 | . . . 3 1 1 Hackware . | . . . . . . Protection 13 | . 1 4 5 3 . Artifact . | . . . . . . Weapon 73 | 4 3 10 26 28 2 Energy Gun 24 | 3 3 1 10 7 . Energy Cannon 10 | . . 2 4 4 . Ballistic Gun 22 | 1 . 6 8 7 . Ballistic Cannon 1 | . . . . 1 . Launcher 6 | . . 1 2 2 1 Special Weapon 1 | . . . . . 1 Impact Weapon 7 | . . . . 7 . Slashing Weapon 2 | . . . 2 . . Piercing Weapon . | . . . . . . Special Melee Weapon . | . . . . . . Unidentified Prototypes 2 | . . 1 . 1 . Parts Lost 26 | . . . 14 9 3 Power 5 | . . . 2 2 1 Propulsion 9 | . . . 5 3 1 Utility 7 | . . . 3 4 . Weapon 5 | . . . 4 . 1 Highest Loss Streak 6 | . . . 6 4 3 To Critical Strikes . | . . . . . . Average Slot Usage (%) 97 | . 100 99 96 94 92 Engine 9 | . 14 10 4 10 14 Core 1 | . . . 4 3 . Treads 6 | . 21 8 . . . Leg 17 | . 7 13 26 21 . Device 13 | . 12 12 18 10 15 Storage 9 | . 14 11 9 7 1 Processor 4 | . . . 2 14 15 Protection 5 | . 1 9 4 3 . Energy Gun 8 | . 25 4 6 8 . Energy Cannon 5 | . . 10 7 1 7 Ballistic Gun 10 | . 3 16 10 8 . Peak Build Rating 50 | 9 12 22 40 50 46 Average Rating 25 | 4 10 17 27 44 44 On Entrance 19 | . 9 8 21 40 39 Naked Turns . | . . . . . . Heaviest Build 91 | 15 91 48 56 66 56 Greatest Support 58 | 20 40 40 58 56 18 Greatest Overweight (x) 16 | 3 4 2 2 16 3 Average Overweight (x) . | . . 1 . . 1 Largest Inventory Capacity 25 | 8 25 15 15 15 15 Average Capacity 15 | 7 18 15 15 15 7 Most Carried 19 | 7 19 15 15 15 4 Average Carried 13 | 4 13 14 14 14 2 Final Capacity 15 | 8 15 15 15 15 5 Final Carried 15 | 6 15 15 15 5 2 Class Distribution -------------------- 40% | Tank 24% | Mutant 21% | Scavenger-Skirmisher 7% | Scavenger-Tank 4% | Scavenger-Mutant Dominant Class ---------------- Mutant | -10/Materials Tank | -9/Materials Tank | -8/Materials Scavenger-Skirmisher | -7/Factory Mutant | -7/Lower Caves Resources | -11 -10 -9 -8 -7 -7 ----------- Run | Yrd Mat Mat Mat Fac Low Matter Collected 3023 | 231 151 639 1203 794 5 Remotely . | . . . . . . Salvage Created 4590 | 30 448 1139 1782 1191 . Parts 271 | 4 29 99 91 48 . Haulers Intercepted 5 | . 2 2 1 . . Recyclers Shooed 3 | . . 1 . 2 . Parts Field Recycled . | . . . . . . Retrieved Matter . | . . . . . . Parts Self-Destructed . | . . . . . . Prevented . | . . . . . . Kills | -11 -10 -9 -8 -7 -7 ------- Run | Yrd Mat Mat Mat Fac Low Combat Hostiles Destroyed 85 | . 7 23 38 17 . Melee 1 | . . . . 1 . Guns 42 | . 3 10 21 8 . Cannons 22 | . . 10 10 2 . AOE 17 | . 4 2 5 6 . Classes Destroyed 17 | 1 5 4 5 2 . Worker 8 | . . 1 2 5 . Builder 12 | . 2 5 3 2 . Tunneler 1 | 1 . . . . . Hauler 5 | . 2 2 1 . . Recycler 7 | . . 1 1 5 . Mechanic 1 | . . . 1 . . Operator 2 | . . 1 1 . . Watcher 11 | . 3 5 2 1 . Swarmer 17 | . 3 7 5 2 . Grunt 40 | . 4 10 17 9 . Brawler 2 | . . . . 2 . Duelist 5 | . . . 5 . . Protector 1 | . . . 1 . . Sentry 11 | . . 6 4 1 . Specialist 4 | . . . 4 . . Hunter 2 | . . . 2 . . Programmer 3 | . . . . 3 . Best Kill Streak 12 | 1 6 5 12 5 . Combat Bots Only 11 | . 5 4 11 4 . Max Kills in Single Turn 3 | 1 3 2 2 3 . Gunslinging 1 | . . 1 . 1 . Exploded 3 | . 2 1 2 3 . Melee 1 | . . . . 1 . Uniques/NPCs Destroyed . | . . . . . . Combat | -11 -10 -9 -8 -7 -7 -------- Run | Yrd Mat Mat Mat Fac Low Hostile Shots Fired 636 | . 21 91 348 154 22 Missed 168 | . 6 20 93 44 5 Damage Taken 7132 | . 229 703 3635 2278 287 Core 1127 | . 63 67 520 425 52 Absorbed by Shields 337 | . . 70 267 . . Redirected to Shielding 116 | . . 21 . 95 . Core Remaining (%) 65 | 100 74 83 5 . . Volleys Fired 267 | 1 22 64 112 67 1 Largest 3 | 2 2 3 3 3 1 Hottest 240 | 60 105 148 240 149 80 Shots Fired 644 | 2 44 164 290 143 1 Gun 456 | 2 44 108 201 101 . Cannon 174 | . . 54 79 40 1 Launcher 14 | . . 2 10 2 . Special . | . . . . . . Kinetic 315 | 1 13 100 138 63 . Thermal 253 | . 9 62 131 50 1 Explosive 14 | . . 2 10 2 . Electromagnetic 62 | 1 22 . 11 28 . Robot Hit Streak 11 | 1 6 9 11 8 . Robot Miss Streak 6 | . 3 6 6 6 1 Penetration Max . | . . . . . . Secondary Targets 6 | . . 1 2 3 . Max Gunslinging Chain 1 | . . 1 1 1 . Shots Hit Robots 391 | 1 27 93 183 87 . Core Hits 226 | 1 17 58 98 52 . Critical Kills 3 | . . 1 2 . . Critical Parts Destroyed . | . . . . . . Critical Strikes 8 | . 1 1 4 2 . Burn 3 | . . . 2 1 . Meltdown 2 | . . 1 1 . . Destroy 1 | . . . 1 . . Corrupt 2 | . 1 . . 1 . Melee Attacks 20 | . . . 1 19 . Impact 19 | . . . . 19 . Slashing 1 | . . . 1 . . Piercing . | . . . . . . Sneak Attacks . | . . . . . . Combat Hostiles . | . . . . . . Follow-up Attacks . | . . . . . . Damage Inflicted 10653 | 15 748 2135 4702 3053 . Guns 4554 | 15 400 902 2091 1146 . Cannons 2846 | . . 825 1450 571 . Explosions 3027 | . 348 404 1152 1123 . Melee 173 | . . . . 173 . Ramming 53 | . . 4 9 40 . Kinetic 2926 | . 79 827 1267 753 . Thermal 4681 | . 455 1000 2363 863 . Explosive 2036 | . . 155 954 927 . Electromagnetic 784 | 15 214 149 109 297 . Impact 173 | . . . . 173 . Slashing . | . . . . . . Piercing . | . . . . . . Highest Corruption 4 | . 1 . . 4 4 Average Corruption 3 | . 1 . . 3 4 Corruption Purged . | . . . . . . Corruption Blocked . | . . . . . . Effects 30 | . 2 . . 26 2 Message Errors 10 | . . . . 10 . Matter Fused 4 | . . . . 4 . Heat Flow Errors 2 | . . . . 1 1 Energy Discharges 7 | . 1 . . 5 1 Parts Rejected 3 | . . . . 3 . Data Loss (minor) 2 | . 1 . . 1 . Data Loss (major) 1 | . . . . 1 . Alerts 1 | . . . . 1 . Overload Shots . | . . . . . . Overflow Damage 186 | . 12 96 36 42 . Projectiles 43 | . . 33 2 8 . Explosions 118 | . 12 63 34 9 . Melee 25 | . . . . 25 . Knockbacks 1 | . . . . 1 . Impact 1 | . . . . 1 . Kinetic . | . . . . . . Secondary . | . . . . . . Self-Inflicted Damage 805 | . 75 . 256 474 . Shots 16 | . 2 . 6 8 . Rammed . | . . . . . . Targets Rammed 11 | . . 2 2 7 . Kicked 11 | . . 2 2 7 . Crushed . | . . . . . . Highest Temperature 505 | . 99 396 477 505 114 Average Temperature 130 | . 33 72 171 154 66 Received Heat Transfer 2373 | . 54 235 1292 744 48 Effects 31 | . . 4 10 17 . Shutdowns 8 | . . . 1 7 . Energy Bleed 4 | . . 1 2 1 . Interference 9 | . . 3 . 6 . Matter Decay 3 | . . . 2 1 . Short Circuit 2 | . . . 1 1 . Damage (minor) 1 | . . . . 1 . Damage (major) 4 | . . . 4 . . Siege Activations . | . . . . . . Robots Corrupted 1 | . 1 . . . . Combat Hostiles . | . . . . . . Parts Fried 3 | . 1 . . 2 . Impact Corruptions 1 | . . . . 1 . Robots Melted 3 | . . 1 2 . . Combat Hostiles 3 | . . 1 2 . . Parts Melted 10 | . 1 2 5 2 . Heat Transferred 7887 | . 659 1543 4091 1594 . Parts Sabotaged . | . . . . . . Parts Stolen . | . . . . . . Parts Stripped . | . . . . . . Power Chain Reactions 7 | . 4 . . 3 . Alert | -11 -10 -9 -8 -7 -7 ------- Run | Yrd Mat Mat Mat Fac Low Peak Influence 906 | 5 252 458 906 700 . Initial 411 | . 3 . 172 411 . Average 374 | . 86 297 612 428 . Maximum Alert Level 3 | . 1 2 3 3 . Low Security (%) 23 | 100 84 19 4 7 . Level 1 36 | . 15 69 9 32 . Level 2 30 | . . 10 51 56 . Level 3 9 | . . . 34 2 . Level 4 . | . . . . . . Level 5 . | . . . . . . High Security . | . . . . . . Max Security . | . . . . . . Squads Dispatched 21 | . . 5 10 6 . Investigation 6 | . . 2 3 1 . Extermination 3 | . . . . 3 . Reinforcement 8 | . . 3 4 1 . Assault 3 | . . . 2 1 . Garrison 1 | . . . 1 . . Intercept . | . . . . . . Searches Triggered . | . . . . . . Construction Impeded 3 | . . 1 1 1 . Haulers Reinforced . | . . . . . . Active Scanning Responses . | . . . . . . Cargo Convoy Interrupts . | . . . . . . Stealth | -11 -10 -9 -8 -7 -7 --------- Run | Yrd Mat Mat Mat Fac Low Distress Signals 9 | . 1 3 4 1 . Communications Jammed . | . . . . . . Distress Signals . | . . . . . . Times Spotted 132 | . 13 34 50 30 5 Peak Tracking Total 7 | . 6 4 7 4 5 Tactical Retreats 5 | . . 2 2 1 . Traps | -11 -10 -9 -8 -7 -7 ------- Run | Yrd Mat Mat Mat Fac Low Traps Triggered 9 | . 1 1 1 6 . Indirectly . | . . . . . . Trap Hack Attempts . | . . . . . . Triggered . | . . . . . . Disarmed 8 | . 8 . . . . Reprogrammed . | . . . . . . Reused . | . . . . . . Traps Extracted . | . . . . . . Installed . | . . . . . . Triggered . | . . . . . . Machines | -11 -10 -9 -8 -7 -7 ---------- Run | Yrd Mat Mat Mat Fac Low Machines Disabled 32 | . 4 6 4 18 . Max in Single Turn 6 | . 3 3 2 6 . Garrison Access 1 | . . . 1 . . Machines Repaired . | . . . . . . Machines Dismantled . | . . . . . . Machines Sabotaged . | . . . . . . Overloaded Fab Kills . | . . . . . . Hacking | -11 -10 -9 -8 -7 -7 --------- Run | Yrd Mat Mat Mat Fac Low Machines Accessed 14 | . 4 5 3 2 . Terminals 12 | . 4 5 2 1 . Fabricators 1 | . . . . 1 . Repair Stations . | . . . . . . Recycling Units . | . . . . . . Scanalyzers 1 | . . . 1 . . Garrison Access . | . . . . . . Total Hacks 38 | . 7 16 10 5 . Successful 15 | . 4 6 4 1 . Failed 23 | . 3 10 6 4 . Catastrophic 5 | . 1 2 2 . . Database Lockouts . | . . . . . . Manual 1 | . 1 . . . . Terminals 30 | . 7 16 5 2 . Fabricators 3 | . . . . 3 . Repair Stations . | . . . . . . Recycling Units . | . . . . . . Scanalyzers 5 | . . . 5 . . Garrison Access . | . . . . . . Terminal Hacks 11 | . 4 6 1 . . Disarm Traps 2 | . 2 . . . . Surveillance Status 1 | . . . 1 . . Patrol Status 1 | . . 1 . . . Investigation Status 2 | . . 2 . . . Zone Layout 5 | . 2 3 . . . Fabricator Hacks 1 | . . . . 1 . Network Status 1 | . . . . 1 . Repair Station Hacks . | . . . . . . Recycling Unit Hacks . | . . . . . . Scanalyzer 3 | . . . 3 . . Insert Component 2 | . . . 2 . . Analyze 1 | . . . 1 . . Garrison Access Hacks . | . . . . . . Unauthorized Hacks . | . . . . . . Terminals . | . . . . . . Fabricators . | . . . . . . Repair Stations . | . . . . . . Recycling Units . | . . . . . . Scanalyzers . | . . . . . . Garrison Access . | . . . . . . Data Cores Recovered . | . . . . . . Used . | . . . . . . Hacking Detections 14 | . 4 5 3 2 . Full Trace Events 6 | . . 2 3 1 . Feedback Events . | . . . . . . Feedback Blocked . | . . . . . . Robot Schematics Acquired . | . . . . . . Robots Built . | . . . . . . Authchips . | . . . . . . Time . | . . . . . . Total Robot Build Rating . | . . . . . . Part Schematics Acquired 1 | . . . 1 . . Parts Built . | . . . . . . Authchips . | . . . . . . Time . | . . . . . . Total Part Build Rating . | . . . . . . Parts Repaired . | . . . . . . Time . | . . . . . . Parts Recycled . | . . . . . . Recycled Matter . | . . . . . . Retrieved Matter . | . . . . . . Retrieved Components . | . . . . . . Parts Scanalyzed 2 | . . . 2 . . Part Schematics Acquired 1 | . . . 1 . . Parts Damaged . | . . . . . . Bothacking | -11 -10 -9 -8 -7 -7 ------------ Run | Yrd Mat Mat Mat Fac Low Used RIF Installer . | . . . . . . Robots Hacked . | . . . . . . Non-combat . | . . . . . . Combat . | . . . . . . Robot Hacks Applied . | . . . . . . Relay Couplers Released 1 | . . . 1 . . Machine Destruction 1 | . . . 1 . . Fabnet Peak Effective % . | . . . . . . Robots Rewired . | . . . . . . Allies Hacked . | . . . . . . Hacks Repelled . | . . . . . . Allies | -11 -10 -9 -8 -7 -7 -------- Run | Yrd Mat Mat Mat Fac Low Total Allies . | . . . . . . Largest Group . | . . . . . . Highest-Rated Group . | . . . . . . Highest-Rated Ally . | . . . . . . Total Orders . | . . . . . . Ally Attacks . | . . . . . . Total Damage . | . . . . . . Kills . | . . . . . . Allies Corrupted . | . . . . . . Allies Melted . | . . . . . . Intel | -11 -10 -9 -8 -7 -7 ------- Run | Yrd Mat Mat Mat Fac Low Robot Analysis Total . | . . . . . . Derelict Logs Recovered . | . . . . . . Drone Launches . | . . . . . . Drone Recoveries . | . . . . . . Exploration | -11 -10 -9 -8 -7 -7 ------------- Run | Yrd Mat Mat Mat Fac Low Turns Passed 7684 | 72 1126 2565 1865 1937 119 Spaces Moved 3337 | 38 491 1016 794 931 67 Core 15 | 9 . . . 6 . Treads 743 | . 328 415 . . . Legs 2508 | 29 163 601 794 921 . Wheels . | . . . . . . Hover . | . . . . . . Flight 71 | . . . . 4 67 Fastest Speed 50 | 50 120 160 120 120 114 Average Speed 181 | 121 205 217 167 148 135 Slowest Speed 850 | 200 400 260 260 850 274 Overloaded Moves . | . . . . . . Propulsion Burnouts . | . . . . . . Robots Hopped . | . . . . . . Cave-ins Triggered . | . . . . . . Exploration Rate (%) 34 | 4 79 62 37 16 9 Regions Visited 5 Branch Regions 1 Pre-discovered Areas . | . . . . . . Known Exits Taken . | . . . . . . Unknown Exits Taken 5 | 1 1 1 1 1 . Scrap Searched . | . . . . . . Spaces Dug 16 | . . . 1 15 . Terrain Destroyed 331 | . 32 75 98 126 . Melee 16 | . . . 1 15 . Projectile 36 | . . 18 18 . . AOE 279 | . 32 57 79 111 . Terrain Rammed . | . . . . . . Walls Destroyed . | . . . . . . Machines Disabled . | . . . . . . Actions | -11 -10 -9 -8 -7 -7 --------- Run | Yrd Mat Mat Mat Fac Low Total 4401 | 61 568 1246 1099 1332 95 Wait 346 | . 13 71 42 199 21 Move 3332 | 37 490 1015 793 930 67 Hop . | . . . . . . Pick Up 140 | 13 23 34 48 22 . Fast Attach 31 | . 1 5 7 18 . Attach 85 | 8 3 10 35 25 4 Detach 8 | 1 . . 3 3 1 Swap 42 | 1 4 8 17 12 . Drop 119 | . 12 37 39 30 1 Fire 267 | 1 22 64 112 67 1 Melee 20 | . . . 1 19 . Ram . | . . . . . . Kick 11 | . . 2 2 7 . Crush . | . . . . . . Escape Stasis . | . . . . . . Rewire . | . . . . . . Trap . | . . . . . . Miscellaneous . | . . . . . . Route ------- -11/Scrapyard -10/Materials (discovered 4 exits: *Mat x2 / [*Min x2]) -9/Materials (discovered 2 exits: *Mat x2) -8/Materials (discovered 2 exits: *Fac / [*Sto]) -7/Factory (discovered 2 exits: [*Fac] / [*Low]) -7/Lower Caves History --------- Turn | Location | Event 27 | -11/Scrapyard | Discovered new exit (range 15) 73 | -11/Scrapyard | Entered Materials 259 | -10/Materials | Discovered new exit (range 12) 345 | -10/Materials | Build established: Mutant 644 | -10/Materials | Discovered new exit (range 15) 1037 | -10/Materials | Discovered new exit (range 7) 1190 | -10/Materials | Discovered new exit (range 5) 1199 | -10/Materials | Entered another Materials area 1199 | -9/Materials | Evolved 2 slots: Utility x1, Weapon x1 1513 | -9/Materials | Discovered new exit (range 8) 1601 | -9/Materials | Build established: Tank 2583 | -9/Materials | Discovered new exit (range 17) 3764 | -9/Materials | Entered another Materials area 3764 | -8/Materials | Evolved 2 slots: Propulsion x1, Utility x1 3916 | -8/Materials | Discovered new exit (range 4) 3942 | -8/Materials | Garrison activated, responded to threat 4062 | -8/Materials | Build established: Scavenger-Tank 4564 | -8/Materials | First assault squad dispatched 4670 | -8/Materials | Lost 3 parts (2n1w) 4686 | -8/Materials | Destroyed 11 combat bots 4758 | -8/Materials | Lost 3 parts (1p1u1w) 4780 | -8/Materials | Core integrity fell below 50% 5181 | -8/Materials | Discovered new exit (range 7) 5244 | -8/Materials | Build established: Tank 5413 | -8/Materials | Core integrity fell below 20% 5459 | -8/Materials | Lost 6 parts (1p2n2u1w) 5629 | -8/Materials | Entered Factory 5629 | -7/Factory | Evolved 2 slots: Power x1, Utility x1 5967 | -7/Factory | Build established: Scavenger-Skirmisher 6095 | -7/Factory | Discovered new exit (range 10) 7229 | -7/Factory | First assault squad dispatched 7329 | -7/Factory | Discovered new exit (range 6) 7423 | -7/Factory | Core integrity fell below 50% 7518 | -7/Factory | Lost 4 parts (1p2n1u) 7566 | -7/Factory | Entered Lower Caves 7668 | -7/Lower Caves | Spotted B-75 Beast 7685 | -7/Lower Caves | Self-destructed Last Messages --------------- 07522_ R-06 Scavenger collects Lgt. Angular Momentum Engine. 07524_ R-06 Scavenger collects Tractor Beam. 07551_ System corrupted: Component data lost. 07561_ Acquired 4 matter. 07562_ U-05 Engineer destroyed. 07563_ K-01 Serf collects debris. LOCATION=UNKNOWN GOAL=ESCAPE 07577_ System corrupted: Energy discharge (-100). 07591_ Dropped Lrg. Storage Unit. 07604_ System corrupted: Heat flow error (+144). 07668_ Knocked back. 07670_ Acquired 3 matter. 07671_ Knocked back. 07674_ Imp. Deuterium Engine destroyed. 07676_ Acquired 2 matter. 07677_ Remote Datajack destroyed. 07681_ Xenon Bombardment Thruster destroyed. Map ----- +----------------------------------------------------+ | ?????????????????????????????????????????????????? | | ?????????????????????????????????????????????????? | | ?????????????????????????????????????????????????? | | ?????????????????????????????????????????????????? | | ?????????????????????????????????????????????????? | | ?????????????????????????????????????????????????? | | ?????????????????????????????????????????????????? | | ?????????????????????????????????????????????????? | | ???????????????????????????#######???????????????? | | ???????????????????????????# """"#???????????????? | | ???????????????????????????#" ""#???????????????? | | ???????????????????????????#"" "#???????????????? | | ??????????????????????????### "#????????????????? | | ??????????????????????????# # "##???????????????? | | ??????????????????????????# "" "###?????????????? | | ??????????????????#???????# !### #?????????????? | | ??????????????????# ?????# ## #?????????????? | | ??????????????????# #### ## ##????????????? | | ??????????????????# #????????????? | | ?????????????????# #????????????? | | ????????????? ####### #????????????? | | ?????????????? ?????##### #????????????? | | ??????????????????????## #????????????? | | ??????????????????????# #????????????? | | ??????????????????????# ### #????????????? | | ???????????? ?????????# @ ##### ##????????????? | | ???????????# ????????# ###### #?????????????? | | ??????????? ??????# #???# #?????????????? | | ??????????## ??#### ##??# #?????????????? | | ???????? ## #g "##?## #?????????????? | | ???????? ##?# #?????????????? | | ????????????# g #### ##?????????????? | | ???????????# ### #?# #??????????????? | | ??????????# ?????## #?####??????????????? | | ????????? ??????????# ##???????????????????? | | ?????????????????????# ##????????????????????? | | ?????????????????????#" #?????????????????????? | | ?????????????????????#"" #????????????????????? | | ????????????????????? #???????????????????? | | ????????????????????? #???????????????????? | | ????????????????????? ##???????????????????? | | ???????????????????? ##????????????????????? | | ??????????????????? #?????????????????????? | | ??????????????????? "?????????????????????? | | ?????????????????? ?????????????????????? | | ?????????????????# ?????????????????????? | | ?????????????????# ##????????????????????? | | ?????????????????# ## ?????????????????????? | | ??????????????????##?# ?????????????????????? | | ?????????????????????#######?????????????????????? | +----------------------------------------------------+ Best States ------------- Heat Dissipation 67 Energy Generation 27 Energy Capacity 480 Matter Stores 300 Matter Capacity 300 Sight Range 20 Robot Scan Range 15 Terrain Scan Range 16 Terrain Scan Density 85 ECM Strength 1 Armor Coverage 600 Propulsion Shielding 66 Evasion (%) 63 Targeting Accuracy 8 Core Analysis 6 Armor Integrity Analysis 30 Recoil Reduction 2 Energy Filtering 30 Item Schematics ----------------- Imp. Titanium Leg | -8/Materials | Scanalyzed Robot Schematics ------------------ None Fabricated ------------ Nothing Alien Tech Used ----------------- None Achievements -------------- Close Call Part-time Excavator Challenges ------------ None Game ------ Seed WardroneBackupStreamer Manual? 0 Play Time 01:46:03 Cumulative 19.3 hours Start 2024.10.11 @ 13:43:15 End 2024.10.11 @ 15:36:06 Sessions 1 Manual Loads 0 Difficulty Rogue Special Mode None Game No. 20 Rogue 20 Adventurer 0 Explorer 0 Win Type - Total 0 Types 0/0/0/0/0/0/0/0/0 Lore% 3 Gallery% 17 Achievement% 16 Wizard Run 0 Options --------- Layout 1 ASCII 0 Keyboard 0 Movement Mouse Keybinds 0 Fullscreen 1 Font 32/SmallcapsGlow Map View 50x35 Zoom Use 0% Tactical HUD 1 Map Filters NONE Filters NONE Steam 1 RUN: 4ab16c4b-dec1-441d-8810-eeda8830c42a